bitfinex/quotes_SOLUSD_20241231
["timestamp","ask_amount","ask_price","bid_price","bid_amount"]
[1735619132220,1.5925,190.05,190.02,20.0]
[1735619132636,6.1092,190.09,190.02,20.0]
[1735619132843,6.1092,190.09,190.0,34.18255661]
[1735619133031,6.1092,190.09,190.01,23.776884]
[1735619133836,6.1092,190.09,190.0,9.61649806]
[1735619134044,6.1092,190.09,190.0,43.776884]
[1735619134419,6.1092,190.09,190.01,13.1566]
[1735619144122,6.1092,190.09,189.98,13.1591]
[1735619144347,1.5559,190.08,189.95,9.61649806]
[1735619144549,1.5559,190.08,189.97,20.0]
[1735619145434,1.5559,190.08,189.96,23.776884]
[1735619145632,1.5559,190.08,189.98,23.776884]
[1735619146452,1.5559,190.08,189.98,36.935684]
[1735619150750,1.5559,190.08,190.0,23.776884]
[1735619150957,1.5559,190.08,190.02,23.776884]
[1735619151453,1.5559,190.08,189.98,13.1588]
[1735619152166,1.5559,190.08,190.01,20.0]
[1735619153058,1.5559,190.08,189.98,13.94812695]
[1735619153356,1.5559,190.08,189.99,20.0]
[1735619153654,1.5559,190.08,189.95,13.1612]
[1735619153861,1.5559,190.08,189.96,23.776884]
[1735619155635,9.68554484,190.08,189.96,23.776884]
[1735619159942,6.3105,190.07,189.96,23.776884]
[1735619160267,1.5817,190.06,189.92,22.77959806]
[1735619160442,6.3105,190.05,189.92,22.77959806]
[1735619160957,6.3105,190.05,189.93,23.776884]
[1735619161158,6.3105,190.05,189.93,34.18293509]
[1735619162667,6.3105,190.05,189.93,33.39338206]
[1735619162864,6.3105,190.05,189.93,23.776884]
[1735619163761,6.3105,190.05,189.93,33.39338206]
[1735619164256,6.3105,190.05,189.95,23.776884]
[1735619164462,6.3105,190.05,189.95,33.39338206]
[1735619164668,6.3105,190.05,189.97,23.776884]
[1735619164968,6.3105,190.05,189.97,33.39338206]
[1735619165468,6.3105,190.05,189.99,23.776884]
[1735619165960,6.3105,190.05,189.97,22.77589806]
[1735619168071,6.3105,190.05,189.98,23.776884]
[1735619172458,6.3105,190.05,189.98,33.39338206]
[1735619176472,6.3105,190.05,189.98,23.776884]
[1735619177576,6.3105,190.05,190.01,20.0]
[1735619181670,1.5817,190.06,190.02,23.776884]
[1735619182674,1.5817,190.06,189.97,20.0]
[1735619182879,1.5817,190.06,190.0,9.61649806]
[1735619183480,1.5817,190.06,190.01,24.56608641]
[1735619193290,1.5817,190.06,190.01,23.776884]
[1735619200501,1.5817,190.06,189.97,13.94901039]
[1735619200690,6.083,190.05,189.94,9.61649806]
[1735619200885,6.083,190.05,189.94,23.776884]
[1735619201085,6.083,190.05,189.97,20.0]
[1735619201690,6.083,190.05,189.94,36.938884]
[1735619202016,6.083,190.05,189.97,20.0]
[1735619205022,6.083,190.05,189.94,46.55538206]
[1735619205439,6.083,190.05,189.94,36.938884]
[1735619205639,6.083,190.05,189.94,46.55538206]
[1735619206532,6.083,190.05,189.93,29.61649806]
[1735619206533,1.549,190.04,189.93,29.61649806]
[1735619207013,1.549,190.04,189.94,23.776884]
[1735619207730,1.549,190.04,189.94,33.39338206]
[1735619209230,9.67864484,190.04,189.94,33.39338206]
[1735619211407,1.549,190.04,189.94,33.39338206]
[1735619213015,1.549,190.04,189.97,9.61649806]
[1735619213188,1.549,190.04,190.0,9.61649806]
[1735619215018,1.549,190.04,190.0,23.776884]
[1735619217522,1.549,190.04,189.98,22.77549806]
[1735619217691,1.549,190.04,189.99,23.776884]
[1735619219004,1.549,190.04,189.98,13.159]
[1735619219214,1.549,190.04,189.96,9.61649806]
[1735619219716,1.549,190.04,189.97,23.776884]
[1735619221788,1.549,190.04,189.97,33.39338206]
[1735619222110,1.549,190.04,189.97,34.18277378]
[1735619222987,1.549,190.04,189.97,33.39338206]
[1735619226713,1.549,190.04,189.97,23.776884]
[1735619228714,1.549,190.04,189.96,9.61649806]
[1735619228715,1.549,190.04,189.96,23.776884]
[1735619235813,1.549,190.04,189.97,0.78944927]
[1735619236518,1.549,190.04,189.97,10.40594733]
[1735619236717,1.549,190.04,189.99,33.39338206]
[1735619237217,1.549,190.04,189.99,23.776884]
[1735619237423,1.549,190.04,189.99,24.56617885]
[1735619239903,1.549,190.04,189.99,34.18267691]
[1735619244520,1.48916012,190.04,189.99,33.39338206]
[1735619244821,1.48916012,190.04,189.99,23.776884]
[1735619245024,1.48916012,190.04,189.97,9.61649806]
[1735619245325,1.48916012,190.04,189.95,22.77769806]
[1735619246127,1.48916012,190.04,189.96,34.18279729]
[1735619246426,1.48916012,190.04,189.96,10.40591329]
[1735619246828,1.48916012,190.04,189.97,23.776884]
[1735619250139,1.48916012,190.04,189.96,0.78941523]
[1735619250308,1.6528,190.0,189.89,0.78948078]
[1735619250508,1.6528,190.0,189.83,151.62524489]
[1735619250509,1.6528,190.0,189.85,13.1682]
[1735619250724,1.6528,190.0,189.89,23.776884]
[1735619251608,8.12964484,189.99,189.89,23.776884]
[1735619251834,8.12964484,189.99,189.89,33.39338206]
[1735619252029,8.12964484,189.99,189.89,23.776884]
[1735619252446,1.6528,190.0,189.89,23.776884]
[1735619253145,9.78244484,190.0,189.89,23.776884]
[1735619253333,9.78244484,190.0,189.93,23.776884]
[1735619253813,1.6528,190.0,189.93,23.776884]
[1735619254837,1.6528,190.0,189.95,23.776884]
[1735619255026,1.6528,190.0,189.95,33.39338206]
[1735619256048,1.6528,190.0,189.97,9.61649806]
[1735619256336,1.6528,190.0,189.97,23.776884]
[1735619256638,6.5977,190.01,189.97,33.39338206]
[1735619257446,6.5977,190.01,189.96,0.78942081]
[1735619257647,1.6528,190.0,189.88,0.78941829]
[1735619257847,1.6528,190.0,189.86,9.61649806]
[1735619258244,1.6528,190.0,189.87,23.776884]
[1735619258438,1.6528,190.0,189.86,9.61649806]
[1735619258650,1.6528,190.0,189.87,9.61649806]
[1735619258948,1.6528,190.0,189.86,23.776884]
[1735619259126,1.6528,190.0,189.87,9.61649806]
[1735619259328,1.6528,190.0,189.88,9.61649806]
[1735619259552,8.12964484,189.99,189.88,9.61649806]
[1735619260328,1.6528,190.0,189.88,9.61649806]
[1735619260834,1.6528,190.0,189.9,9.61649806]
[1735619262163,1.6528,190.0,189.91,46.55748206]
[1735619262450,1.6528,190.0,189.92,9.61649806]
[1735619263758,1.6528,190.0,189.93,9.61649806]
[1735619264049,1.6528,190.0,189.95,9.61649806]
[1735619264229,1.6528,190.0,189.94,13.162]
[1735619264434,1.6528,190.0,189.94,22.77849806]
[1735619268641,1.6528,190.0,189.94,13.162]
[1735619269256,1.6528,190.0,189.94,22.77849806]
[1735619273241,1.6528,190.0,189.95,33.39338206]
[1735619273447,1.6314,190.05,189.99,9.61649806]
[1735619275846,1.6314,190.05,190.0,9.61649806]
[1735619276047,6.5832,190.06,190.01,33.39338206]
[1735619276346,6.5832,190.06,190.02,9.61649806]
[1735619278373,6.5832,190.06,190.01,46.55048206]
[1735619279348,0.99524104,190.1,190.01,46.55048206]
[1735619286571,0.99524104,190.1,189.97,13.1593]
[1735619286757,0.99524104,190.1,189.98,23.776884]
[1735619288079,0.99524104,190.1,189.98,33.39338206]
[1735619288681,0.99524104,190.1,189.98,23.776884]
[1735619289484,0.99524104,190.1,189.98,33.39338206]
[1735619290882,0.99524104,190.1,190.0,23.776884]
[1735619291104,0.99524104,190.1,190.0,33.39338206]
[1735619291475,0.99524104,190.1,190.0,23.776884]
[1735619293880,0.99524104,190.1,190.01,13.1572]
[1735619297978,0.99524104,190.1,190.02,23.776884]
[1735619303494,0.99524104,190.1,190.01,13.1572]
[1735619303794,0.99524104,190.1,190.01,20.0]
[1735619312380,0.99524104,190.1,190.01,42.77359806]
[1735619314106,0.99524104,190.1,190.01,33.1571]
[1735619314983,0.99524104,190.1,190.01,20.0]
[1735619316804,9.12488588,190.1,190.01,20.0]
[1735619320607,8.12964484,190.09,190.01,20.0]
[1735619322109,8.12964484,190.08,190.01,20.0]
[1735619325710,8.12964484,190.08,189.98,22.77549806]
[1735619326317,8.12964484,190.07,189.98,22.77549806]
[1735619328508,8.12964484,190.07,190.0,13.1578]
[1735619329612,8.12964484,190.08,190.0,22.77429806]
[1735619330714,8.12964484,190.08,190.01,23.776884]
[1735619330892,8.12964484,190.08,190.01,33.39338206]
[1735619331213,8.12964484,190.09,190.01,23.776884]
[1735619335831,8.12964484,190.09,190.01,33.39338206]
[1735619336302,8.12964484,190.09,190.02,13.1565]
[1735619343816,8.12964484,190.09,190.01,20.0]
[1735619345211,8.12964484,190.07,190.01,20.0]
[1735619346713,8.12964484,190.08,190.01,20.0]
[1735619347229,8.12964484,190.07,190.01,20.0]
[1735619350933,8.12964484,190.08,190.01,20.0]
[1735619353936,8.12964484,190.08,190.01,29.61649806]
[1735619354118,8.12964484,190.08,190.02,33.39338206]
[1735619354313,8.12964484,190.08,190.01,20.0]
[1735619356637,8.12964484,190.08,190.06,21.40538256]
[1735619357140,8.12964484,190.09,190.06,21.40538256]
[1735619365047,8.12964484,190.08,190.06,21.40538256]
[1735619367248,32.51857939,190.11,190.06,21.40538256]
[1735619367249,8.12964484,190.11,190.06,21.40538256]
[1735619367744,8.12964484,190.1,190.06,21.40538256]
[1735619369648,8.12964484,190.11,190.06,21.40538256]
[1735619370454,8.12964484,190.1,190.06,21.40538256]
[1735619371527,8.12964484,190.11,190.06,21.40538256]
[1735619382861,8.12964484,190.1,190.06,21.40538256]
[1735619383964,8.12964484,190.09,190.06,21.40538256]
[1735619400387,20.0,190.07,190.06,21.40538256]
[1735619401181,39.91449555,190.07,190.06,21.40538256]
[1735619401554,23.776884,190.06,189.93,9.61649806]
[1735619401755,23.776884,190.06,189.92,29.28519806]
[1735619401984,23.776884,190.06,189.93,9.61649806]
[1735619402879,36.25928969,190.07,189.96,9.61649806]
[1735619403074,8.27153368,190.06,189.94,13.95084858]
[1735619403280,8.27153368,190.06,189.97,9.61649806]
[1735619403456,8.27153368,190.06,189.95,23.776884]
[1735619403655,8.27153368,190.06,189.97,9.61649806]
[1735619403874,1.6272,190.08,189.98,9.61649806]
[1735619404053,8.27153368,190.09,189.99,9.61649806]
[1735619404877,14.93793368,190.11,189.99,9.61649806]
[1735619407857,14.93793368,190.11,190.02,9.61649806]
[1735619408168,8.27153368,190.11,190.02,9.61649806]
[1735619408978,8.27153368,190.11,190.0,23.776884]
[1735619409184,8.27153368,190.11,189.99,29.27969806]
[1735619409565,9.89873368,190.13,189.99,29.27969806]
[1735619409766,9.89873368,190.13,189.99,19.6632]
[1735619409963,6.1513,190.09,189.97,11.18899806]
[1735619410288,6.1513,190.09,189.95,29.14069806]
[1735619410973,6.1513,190.09,189.96,9.61649806]
[1735619411572,6.1513,190.09,189.97,9.61649806]
[1735619411573,14.42283368,190.09,189.97,9.61649806]
[1735619411781,14.42283368,190.09,189.96,33.39338206]
[1735619412286,8.27153368,190.07,189.96,33.39338206]
[1735619412885,8.27153368,190.07,189.98,23.776884]
[1735619413192,8.27153368,190.07,189.99,9.61649806]
[1735619413490,8.27153368,190.07,190.0,23.776884]
[1735619413881,8.27153368,190.09,190.0,23.776884]
[1735619414694,8.27153368,190.1,190.0,33.39338206]
[1735619415768,8.27153368,190.1,190.0,23.776884]
[1735619416696,8.27153368,190.09,190.0,23.776884]
[1735619418092,8.27153368,190.09,189.95,6.3636]
[1735619418297,8.27153368,190.09,189.97,9.61649806]
[1735619418879,8.27153368,190.08,189.98,23.776884]
[1735619419078,8.27153368,190.08,189.96,22.77709806]
[1735619419301,1.5614,190.07,189.96,22.77709806]
[1735619419503,1.5614,190.07,189.97,23.776884]
[1735619420199,1.5614,190.07,189.96,22.77709806]
[1735619420402,8.27153368,190.06,189.96,22.77709806]
[1735619420582,14.42283368,190.06,189.93,0.78943015]
[1735619420786,14.42283368,190.06,189.93,9.61649806]
[1735619421693,14.42283368,190.06,189.95,20.0]
[1735619421879,14.42283368,190.06,189.95,29.61649806]
[1735619422085,14.42283368,190.06,189.93,23.776884]
[1735619422086,14.42283368,190.06,189.96,20.0]
[1735619422695,6.1513,190.06,189.96,20.0]
[1735619423504,14.42283368,190.06,189.96,20.0]
[1735619424313,8.27153368,190.05,189.96,20.0]
[1735619427420,8.27153368,190.05,189.93,23.776884]
[1735619427718,6.1513,190.06,189.94,9.61649806]
[1735619427719,14.42283368,190.06,189.94,9.61649806]
[1735619430813,8.27153368,190.05,189.94,9.61649806]
[1735619431014,8.27153368,190.05,189.93,23.776884]
[1735619431202,8.27153368,190.05,189.94,9.61649806]
[1735619431928,14.42283368,190.06,189.94,9.61649806]
[1735619432526,14.42283368,190.06,189.95,22.77779806]
[1735619432690,14.42283368,190.06,189.97,9.61649806]
[1735619432886,14.42283368,190.06,189.98,29.61649806]
[1735619433093,14.42283368,190.06,189.95,13.1613]
[1735619433591,6.1513,190.06,189.95,13.1613]
[1735619434025,6.1513,190.06,189.95,22.77779806]
[1735619434318,8.27153368,190.05,189.97,9.61649806]
[1735619435034,6.1513,190.06,189.97,9.61649806]
[1735619435497,6.1513,190.06,189.96,33.39338206]
[1735619439038,6.1513,190.06,189.97,9.61649806]
[1735619439216,9.83293368,190.07,189.99,33.39338206]
[1735619439918,9.83293368,190.07,190.01,23.776884]
[1735619440120,8.27153368,190.07,190.03,23.776884]
[1735619440327,8.27153368,190.09,190.03,33.39338206]
[1735619441341,8.27153368,190.12,190.03,33.39338206]
[1735619442234,9.79603368,190.13,190.03,33.39338206]
[1735619442612,9.79603368,190.13,190.04,9.61649806]
[1735619445652,9.79603368,190.13,190.03,33.39338206]
[1735619448545,9.79603368,190.13,190.03,23.776884]
[1735619449951,9.79603368,190.13,190.03,33.39338206]
[1735619450929,1.5245,190.13,190.03,33.39338206]
[1735619460074,1.5245,190.13,190.04,13.1551]
[1735619460279,1.5245,190.13,190.05,23.776884]
[1735619460436,1.5245,190.13,190.05,34.18244438]
[1735619460644,1.5245,190.13,190.07,23.776884]
[1735619461176,8.27153368,190.17,190.09,9.61649806]
[1735619461371,8.27153368,190.17,190.11,23.776884]
[1735619461540,1.639,190.18,190.13,23.776884]
[1735619462436,14.42613368,190.2,190.13,23.776884]
[1735619462955,6.1546,190.2,190.13,23.776884]
[1735619463151,1.5108,190.22,190.13,23.776884]
[1735619463343,1.5108,190.22,190.13,33.39338206]
[1735619464554,1.5108,190.22,190.15,23.776884]
[1735619464751,6.4327,190.24,190.17,9.61649806]
[1735619464938,1.5108,190.27,190.17,10.40505164]
[1735619465136,1.5108,190.27,190.19,23.776884]
[1735619465553,1.5108,190.27,190.18,23.776884]
[1735619466449,1.5108,190.27,190.18,33.39338206]
[1735619468263,1.5108,190.27,190.18,23.776884]
[1735619471273,1.5108,190.27,190.15,9.61649806]
[1735619473162,1.5108,190.27,190.15,10.40509716]
[1735619473363,1.5108,190.27,190.17,23.776884]
[1735619476086,1.5108,190.27,190.16,23.776884]
[1735619476289,1.5108,190.27,190.16,33.39338206]
[1735619477282,1.5108,190.27,190.15,9.61649806]
[1735619477462,1.5108,190.27,190.13,22.76469806]
[1735619477681,20.0,190.26,190.13,22.76469806]
[1735619478204,20.0,190.26,190.14,9.61649806]
[1735619478507,20.0,190.26,190.16,23.776884]
[1735619480695,20.0,190.26,190.15,23.776884]
[1735619481811,1.6532,190.25,190.13,13.1482]
[1735619481972,1.6532,190.25,190.1,0.78867562]
[1735619482171,20.0,190.24,190.1,22.76729806]
[1735619482373,1.6165,190.23,190.1,22.76729806]
[1735619483021,1.6165,190.23,190.11,23.776884]
[1735619483233,6.6009,190.22,190.09,9.61649806]
[1735619483399,1.6165,190.21,190.07,13.94185031]
[1735619483720,20.0,190.19,190.07,13.153]
[1735619484622,20.0,190.19,190.08,23.776884]
[1735619485624,7.9432,190.18,190.07,13.153]
[1735619485818,7.9432,190.18,190.07,9.61649806]
[1735619486118,7.9432,190.18,190.07,23.776884]
[1735619486419,7.9432,190.18,190.07,43.776884]
[1735619493524,7.9432,190.18,190.07,53.39338206]
[1735619497630,7.9432,190.18,190.07,43.776884]
[1735619501343,7.9432,190.18,190.07,53.39338206]
[1735619501632,7.9432,190.18,190.05,13.1537]
[1735619502027,1.512,190.17,190.05,13.1537]
[1735619507517,1.512,190.17,190.08,9.61649806]
[1735619508113,1.512,190.17,190.1,33.39338206]
[1735619508328,1.512,190.17,190.11,9.61649806]
[1735619509233,1.512,190.17,190.1,9.61649806]
[1735619512025,1.512,190.17,190.1,33.39338206]
[1735619512924,1.512,190.17,190.11,23.776884]
[1735619513127,1.512,190.17,190.12,13.1495]
[1735619513840,1.512,190.17,190.13,23.776884]
[1735619514040,9.58543368,190.27,190.12,22.76599806]
[1735619514041,1.6169,190.23,190.15,9.61649806]
[1735619514238,1.6169,190.23,190.15,33.39338206]
[1735619514823,1.6169,190.23,190.16,23.776884]
[1735619515124,1.6169,190.23,190.16,46.53948206]
[1735619516263,1.6169,190.23,190.18,23.776884]
[1735619516428,1.6169,190.28,190.18,33.39338206]
[1735619517725,1.6169,190.28,190.19,23.776884]
[1735619519458,1.6169,190.28,190.18,22.76119806]
[1735619519832,1.6169,190.28,190.19,23.776884]
[1735619520531,1.6169,190.28,190.2,9.61649806]
[1735619521357,1.6169,190.28,190.19,33.39338206]
[1735619526471,1.6169,190.28,190.21,23.776884]
[1735619530966,1.5399,190.33,190.24,9.61649806]
[1735619531166,1.5399,190.33,190.26,9.61649806]
[1735619533175,1.5399,190.33,190.27,9.61649806]
[1735619534065,1.5399,190.33,190.26,23.776884]
[1735619536778,1.5399,190.33,190.25,23.776884]
[1735619536979,1.5399,190.33,190.25,33.39338206]
[1735619537166,1.5399,190.33,190.26,9.61649806]
[1735619537676,1.5399,190.33,190.23,23.776884]
[1735619537854,1.5399,190.33,190.23,13.1419]
[1735619538054,1.5399,190.33,190.24,9.61649806]
[1735619538555,1.5399,190.33,190.23,22.75839806]
[1735619539974,1.5399,190.33,190.23,13.1419]
[1735619540182,20.0,190.32,190.21,9.61649806]
[1735619540476,20.0,190.32,190.22,23.776884]
[1735619541279,20.0,190.32,190.22,9.61649806]
[1735619541676,20.0,190.32,190.21,9.61649806]
[1735619541881,20.0,190.32,190.22,23.776884]
[1735619547778,20.0,190.32,190.22,9.61649806]
[1735619548701,20.0,190.32,190.21,23.776884]
[1735619548993,20.0,190.32,190.22,9.61649806]
[1735619549165,1.5399,190.33,190.24,23.776884]
[1735619549501,1.5399,190.33,190.26,9.61649806]
[1735619550367,1.5399,190.33,190.26,23.776884]
[1735619550570,1.5399,190.33,190.24,9.61649806]
[1735619551089,1.5399,190.33,190.26,23.776884]
[1735619552789,1.5399,190.33,190.26,9.61649806]
[1735619553489,1.5399,190.33,190.25,23.776884]
[1735619553490,1.5399,190.33,190.18,0.78819853]
[1735619553790,1.5399,190.33,190.25,9.61649806]
[1735619554989,1.5399,190.33,190.26,23.776884]
[1735619555607,1.5399,190.33,190.26,9.61649806]
[1735619559295,1.5399,190.33,190.2,7.41793117]
[1735619559467,1.5399,190.33,190.22,9.61649806]
[1735619560395,1.5399,190.33,190.23,36.918684]
[1735619561494,20.0,190.32,190.23,36.918684]
[1735619562693,20.0,190.32,190.21,9.61649806]
[1735619563797,6.4489,190.32,190.19,13.1441]
[1735619564091,6.4489,190.32,190.2,9.61649806]
[1735619564388,6.4489,190.32,190.21,23.776884]
[1735619564981,6.4489,190.32,190.19,13.1441]
[1735619564982,1.5723,190.31,190.19,9.61649806]
[1735619565373,1.5723,190.31,190.18,9.61649806]
[1735619565884,20.0,190.29,190.18,9.61649806]
[1735619566206,20.0,190.29,190.19,9.61649806]
[1735619567499,1.5723,190.31,190.2,33.39338206]
[1735619567795,1.5723,190.31,190.21,9.61649806]
[1735619568789,1.5723,190.31,190.2,33.39338206]
[1735619570803,9.84383368,190.31,190.2,33.39338206]
[1735619573106,9.84383368,190.31,190.22,9.61649806]
[1735619574002,1.5723,190.31,190.22,9.61649806]
[1735619579205,1.5723,190.31,190.22,23.776884]
[1735619580216,20.0,190.29,190.21,9.61649806]
[1735619580512,1.6162,190.28,190.18,9.61649806]
[1735619580809,6.0958,190.27,190.18,23.776884]
[1735619581691,6.0958,190.27,190.17,9.61649806]
[1735619582212,6.0958,190.27,190.16,33.39338206]
[1735619582513,6.0958,190.27,190.17,9.61649806]
[1735619583110,6.0958,190.27,190.19,9.61649806]
[1735619583813,6.0958,190.27,190.2,33.39338206]
[1735619584319,1.6162,190.28,190.24,23.776884]
[1735619584516,1.6162,190.28,190.24,33.39338206]
[1735619584702,8.27153368,190.3,190.24,33.39338206]
[1735619585416,8.0247,190.32,190.24,33.39338206]
[1735619587720,8.0247,190.32,190.26,23.776884]
[1735619588709,8.0247,190.32,190.23,22.75819806]
[1735619590623,8.0247,190.32,190.23,13.1417]
[1735619590830,8.0247,190.32,190.23,23.776884]
[1735619591123,8.0247,190.32,190.21,33.39338206]
[1735619591626,16.29623368,190.32,190.21,33.39338206]
[1735619594403,16.29623368,190.32,190.22,9.61649806]
[1735619594609,16.29623368,190.32,190.23,23.776884]
[1735619597731,8.0247,190.32,190.23,23.776884]
[1735619601133,8.0247,190.32,190.22,23.776884]
[1735619601833,8.0247,190.32,190.2,22.76029806]
[1735619602133,16.29623368,190.32,190.2,22.76029806]
[1735619602318,16.29623368,190.32,190.21,23.776884]
[1735619602520,8.27153368,190.3,190.21,23.776884]
[1735619602936,1.605,190.29,190.17,13.1459]
[1735619603235,1.605,190.29,190.17,22.76239806]
[1735619603436,1.605,190.29,190.18,23.776884]
[1735619604028,9.87653368,190.29,190.18,23.776884]
[1735619604730,9.87653368,190.29,190.17,22.76239806]
[1735619604934,6.6216,190.28,190.17,22.76239806]
[1735619605324,14.89313368,190.28,190.17,22.76239806]
[1735619606319,14.89313368,190.28,190.17,9.61649806]
[1735619606515,14.89313368,190.28,190.16,9.61649806]
[1735619607438,14.89313368,190.28,190.17,9.61649806]
[1735619609457,14.89313368,190.28,190.18,33.39338206]
[1735619610149,6.6216,190.28,190.18,33.39338206]
[1735619610366,6.6216,190.28,190.18,46.53878206]
[1735619613940,14.89313368,190.28,190.18,46.53878206]
[1735619614967,14.89313368,190.28,190.2,22.76049806]
[1735619615153,14.89313368,190.28,190.21,9.61649806]
[1735619615154,6.6216,190.28,190.21,9.61649806]
[1735619615664,9.87653368,190.29,190.21,9.61649806]
[1735619615846,1.605,190.29,190.21,9.61649806]
[1735619617967,1.605,190.29,190.22,33.39338206]
[1735619618148,14.89313368,190.32,190.25,9.61649806]
[1735619618350,14.89313368,190.32,190.26,23.776884]
[1735619618562,6.6216,190.32,190.26,23.776884]
[1735619619282,6.6216,190.32,190.26,33.39338206]
[1735619619469,6.6216,190.32,190.27,9.61649806]
[1735619621171,6.6216,190.32,190.26,9.61649806]
[1735619621359,6.6216,190.32,190.27,23.776884]
[1735619623081,6.6216,190.32,190.27,22.75539806]
[1735619623281,6.6216,190.32,190.27,46.53228206]
[1735619623584,6.6216,190.32,190.28,23.776884]
[1735619628087,1.5569,190.33,190.28,23.776884]
[1735619629193,1.5569,190.33,190.28,33.39338206]
[1735619629362,6.2131,190.36,190.23,0.78810425]
[1735619629363,6.2131,190.36,190.31,9.61649806]
[1735619629698,16.25928969,190.41,190.35,9.61649806]
[1735619629699,8.27153368,190.4,190.35,9.61649806]
[1735619629898,8.27153368,190.4,190.37,9.61649806]
[1735619630671,1.5747,190.42,190.37,9.61649806]
[1735619631282,8.27153368,190.45,190.38,33.39338206]
[1735619631478,6.2131,190.46,190.39,9.61649806]
[1735619632581,6.2131,190.46,190.4,9.61649806]
[1735619632888,6.2131,190.46,190.39,9.61649806]
[1735619633983,6.2131,190.46,190.32,8.1853]
[1735619634189,6.2131,190.46,190.36,9.61649806]
[1735619635788,6.2131,190.46,190.37,9.61649806]
[1735619640283,6.2131,190.46,190.36,9.61649806]
[1735619642397,6.2131,190.46,190.34,0.78774453]
[1735619642594,1.6164,190.45,190.3,13.92485384]
[1735619642805,1.6164,190.45,190.31,9.61649806]
[1735619643169,1.6164,190.45,190.32,9.61649806]
[1735619646399,1.6164,190.45,190.33,9.61649806]
[1735619646778,1.6164,190.45,190.35,9.61649806]
[1735619647181,1.6164,190.45,190.36,9.61649806]
[1735619647500,1.6164,190.45,190.37,9.61649806]
[1735619648294,1.6164,190.45,190.34,37.69843597]
[1735619648295,1.6164,190.45,190.36,9.61649806]
[1735619648684,1.6164,190.45,190.38,20.0]
[1735619648890,1.6164,190.45,190.35,9.61649806]
[1735619649282,1.6164,190.45,190.34,22.75029806]
[1735619654508,1.6164,190.45,190.33,9.61649806]
[1735619655507,1.6164,190.45,190.34,9.61649806]
[1735619655696,1.6164,190.45,190.35,29.61649806]
[1735619656614,1.6164,190.45,190.34,33.39338206]
[1735619661916,1.6164,190.45,190.34,23.776884]
[1735619662097,20.0,190.43,190.32,9.61649806]
[1735619662697,20.0,190.43,190.31,23.776884]
[1735619662907,7.6686,190.42,190.3,9.61649806]
[1735619663105,7.6686,190.42,190.31,9.61649806]
[1735619664013,7.6686,190.42,190.3,33.39338206]
[1735619664507,7.6686,190.42,190.26,13.1397]
[1735619664508,1.5821,190.38,190.26,13.1397]
[1735619664714,1.5821,190.38,190.27,9.61649806]
[1735619666007,6.4613,190.37,190.26,22.75619806]
[1735619666206,6.4613,190.37,190.27,23.776884]
[1735619668608,6.4613,190.37,190.21,13.1433]
[1735619668817,6.4613,190.37,190.25,9.61649806]
[1735619671819,6.4613,190.37,190.26,9.61649806]
[1735619672001,6.4613,190.37,190.27,23.776884]
[1735619672397,20.0,190.34,190.25,22.75639806]
[1735619673303,20.0,190.34,190.25,46.53328206]
[1735619673519,20.0,190.34,190.26,9.61649806]
[1735619673721,20.0,190.34,190.27,9.61649806]
[1735619674504,20.0,190.34,190.26,9.61649806]
[1735619674801,6.4613,190.37,190.27,9.61649806]
[1735619675019,6.4613,190.37,190.28,33.39338206]
[1735619675212,6.4613,190.37,190.29,9.61649806]
[1735619675715,6.4613,190.37,190.3,9.61649806]
[1735619677439,6.4613,190.37,190.29,9.61649806]
[1735619677607,6.4613,190.37,190.28,33.39338206]
[1735619680129,6.4613,190.37,190.3,9.61649806]
[1735619680426,6.4613,190.37,190.29,9.61649806]
[1735619682233,6.4613,190.37,190.27,9.61649806]
[1735619683730,6.4613,190.37,190.26,9.61649806]
[1735619683924,6.4613,190.37,190.25,9.61649806]
[1735619684904,6.4613,190.37,190.25,33.39338206]
[1735619687429,6.4613,190.37,190.26,9.61649806]
[1735619689043,6.4613,190.37,190.25,9.61649806]
[1735619690241,1.5734,190.36,190.24,22.75749806]
[1735619690538,20.0,190.34,190.24,22.75749806]
[1735619692919,20.0,190.34,190.21,20.78826649]